fUST/lending_fUST_20260505
["ID","MTS","AMOUNT","RATE_DAILY","PERIOD"]
[421622846,1777983041000,-282.30488313,0.00012025,2]
[421622850,1777983041000,-500.0,0.00012025,2]
[421622832,1777983041000,-500.0,0.00012025,2]
[421622828,1777983041000,-621.03749691,0.00012025,2]
[421622835,1777983041000,-423.01544658,0.00012025,2]
[421622831,1777983041000,-500.0,0.00012025,2]
[421622826,1777983041000,-1824.87026997,0.00011996,2]
[421622830,1777983041000,-500.0,0.00012025,2]
[421622829,1777983041000,-500.0,0.00012025,2]
[421622840,1777983041000,-500.0,0.00012025,2]
[421622843,1777983041000,-500.0,0.00012025,2]
[421622842,1777983041000,-500.0,0.00012025,2]
[421622844,1777983041000,-500.0,0.00012025,2]
[421622841,1777983041000,-500.0,0.00012025,2]
[421622836,1777983041000,-500.0,0.00012025,2]
[421622876,1777983042000,-500.0,0.00012025,2]
[421622872,1777983042000,-500.0,0.00012025,2]
[421622877,1777983042000,-500.0,0.00012025,2]
[421622873,1777983042000,-500.0,0.00012025,2]
[421622874,1777983042000,-500.0,0.00012025,2]
[421622870,1777983042000,-500.0,0.00012025,2]
[421622871,1777983042000,-463.47330263,0.00012025,2]
[421622864,1777983042000,-500.0,0.00012025,2]
[421622865,1777983042000,-503.18362988,0.00012025,2]
[421622868,1777983042000,-500.0,0.00012025,2]
[421622866,1777983042000,-500.0,0.00012025,2]
[421622867,1777983042000,-493.01857464,0.00012025,2]
[421622863,1777983042000,-24.70068773,0.00012025,2]
[421622879,1777983042000,-500.0,0.00012025,2]
[421622869,1777983042000,-500.0,0.00012025,2]
[421622889,1777983042000,-500.0,0.00012025,2]
[421622875,1777983042000,-500.0,0.00012025,2]
[421622888,1777983042000,-500.0,0.00012025,2]
[421622899,1777983042000,-359.86517122,0.00012026,2]
[421622898,1777983042000,-23299.9999989,0.00012026,2]
[421622897,1777983042000,-216385.15108887,0.00012026,2]
[421622896,1777983042000,-235582.39780226,0.00012026,2]
[421622895,1777983042000,-500.0,0.00012025,2]
[421622892,1777983042000,-500.0,0.00012025,2]
[421622893,1777983042000,-500.0,0.00012025,2]
[421622886,1777983042000,-500.0,0.00012025,2]
[421622890,1777983042000,-500.0,0.00012025,2]
[421622887,1777983042000,-500.0,0.00012025,2]
[421622878,1777983042000,-471.3657267,0.00012025,2]
[421622884,1777983042000,-500.0,0.00012025,2]
[421622880,1777983042000,-500.0,0.00012025,2]
[421622883,1777983042000,-500.0,0.00012025,2]
[421622885,1777983042000,-500.0,0.00012025,2]
[421622882,1777983042000,-500.0,0.00012025,2]
[421622881,1777983042000,-500.0,0.00012025,2]
[421622911,1777983044000,152.0,0.00010002,30]
[421622918,1777983046000,-500.0,0.00012025,2]
[421622916,1777983046000,-152.0,8.333e-05,2]
[421622919,1777983046000,-103.88036448,0.00012026,2]
[421622917,1777983046000,-152.0,8.335e-05,2]
[421622921,1777983046000,-135353.07587543,0.00012026,2]
[421622920,1777983046000,-4852.4258661,0.00012026,2]
[421622923,1777983046000,-569.37999998,0.00012026,2]
[421622922,1777983046000,-4266.19944885,0.00012026,2]
[421622926,1777983572000,1000.0,0.00010999,30]
[421622928,1777984047000,4000.0,0.00020822,120]
[421622932,1777984077000,3413.05,0.00020822,120]
[421623234,1777984243000,-300.0,0.00011219,2]
[421623243,1777984243000,-300.0,0.00011219,2]
[421623255,1777984243000,-500.0,0.0001182,2]
[421623253,1777984243000,-500.0,0.0001182,2]
[421623242,1777984243000,-300.0,0.00011219,2]
[421623246,1777984243000,-300.0,0.00011219,2]
[421623249,1777984243000,-167.47626943,0.000117,2]
[421623250,1777984243000,-436.07969989,0.00011768,2]
[421623248,1777984243000,-300.0,0.00011219,2]
[421623235,1777984243000,-300.0,0.00011219,2]
[421623247,1777984243000,-300.0,0.00011219,2]
[421623251,1777984243000,-500.0,0.0001182,2]
[421623257,1777984243000,-500.0,0.0001182,2]
[421623244,1777984243000,-300.0,0.00011219,2]
[421623232,1777984243000,-300.0,0.00011219,2]
[421623221,1777984243000,-4452.57074293,9.572e-05,2]
[421623230,1777984243000,-300.0,0.00011219,2]
[421623240,1777984243000,-300.0,0.00011219,2]
[421623231,1777984243000,-300.0,0.00011219,2]
[421623241,1777984243000,-300.0,0.00011219,2]
[421623228,1777984243000,-500.0,0.00011,2]
[421623226,1777984243000,-1650.0,0.00010959,2]
[421623238,1777984243000,-300.0,0.00011219,2]
[421623237,1777984243000,-300.0,0.00011219,2]
[421623227,1777984243000,-2500.0,0.00011,2]
[421623225,1777984243000,-152.0,0.0001072,2]
[421623223,1777984243000,-200.0,9.866e-05,2]
[421623222,1777984243000,-369.55906771,9.768e-05,2]
[421623224,1777984243000,-152.0,0.00010573,7]
[421623268,1777984243000,-500.0,0.0001182,2]
[421623229,1777984243000,-49944.40339521,0.00011219,2]
[421623261,1777984243000,-500.0,0.0001182,2]
[421623282,1777984243000,-500.0,0.0001182,2]
[421623259,1777984243000,-500.0,0.0001182,2]
[421623289,1777984243000,-4873.68,0.00011821,2]
[421623284,1777984243000,-500.0,0.0001182,2]
[421623286,1777984243000,-500.0,0.0001182,2]
[421623283,1777984243000,-165.76766479,0.0001182,2]
[421623288,1777984243000,-16787.4610381,0.00011821,2]
[421623287,1777984243000,-108515.45596811,0.00011821,2]
[421623285,1777984243000,-500.0,0.0001182,2]
[421623291,1777984243000,-1224.85871026,0.00011821,2]
[421623281,1777984243000,-500.0,0.0001182,2]
[421623277,1777984243000,-500.0,0.0001182,2]
[421623276,1777984243000,-500.0,0.0001182,2]
[421623278,1777984243000,-500.0,0.0001182,2]
[421623279,1777984243000,-500.0,0.0001182,2]
[421623275,1777984243000,-500.0,0.0001182,2]
[421623274,1777984243000,-500.0,0.0001182,2]
[421623271,1777984243000,-500.0,0.0001182,2]
[421623272,1777984243000,-500.0,0.0001182,2]
[421623273,1777984243000,-500.0,0.0001182,2]
[421623269,1777984243000,-500.0,0.0001182,2]
[421623280,1777984243000,-500.0,0.0001182,2]
[421623270,1777984243000,-500.0,0.0001182,2]
[421623256,1777984243000,-500.0,0.0001182,2]
[421623262,1777984243000,-500.0,0.0001182,2]
[421623267,1777984243000,-500.0,0.0001182,2]
[421623264,1777984243000,-500.0,0.0001182,2]
[421623260,1777984243000,-371.13539899,0.0001182,2]
[421623263,1777984243000,-500.0,0.0001182,2]
[421623265,1777984243000,-500.0,0.0001182,2]
[421623258,1777984243000,-500.0,0.0001182,2]
[421623290,1777984243000,-647.81,0.00011821,2]
[421623266,1777984243000,-500.0,0.0001182,2]
[421623299,1777984246000,-2432.58658523,0.00011821,2]
[421623301,1777984247000,-25890.06642634,0.00011821,2]
[421623300,1777984247000,-11116.04166623,0.00011821,2]
[421623302,1777984253000,5392.66483497,7.6e-05,2]
[421623303,1777984289000,8000.0,0.00020822,120]
[421623304,1777984398000,229.95106982,0.00020821,120]
[421623305,1777984404000,356.06751635,0.0002082,120]
[421623306,1777984409000,506.06751635,0.0002082,120]
[421623308,1777984485000,1563.41199958,0.00017106,120]
[421623310,1777984486000,1563.41199958,0.00017198,120]
[421623309,1777984486000,1563.41199958,0.00017152,120]
[421623314,1777984837000,1506.06751635,0.0002082,120]
[421623320,1777985231000,1444.0,0.00020329,120]
[421623565,1777985441000,-300.0,0.00010519,2]
[421623566,1777985441000,-1680.0,0.00010626,2]
[421623564,1777985441000,-300.0,0.00010518,2]
[421623558,1777985441000,-300.0,9.563e-05,2]
[421623563,1777985441000,-217.6744285,0.00010164,2]
[421623562,1777985441000,-300.0,9.759e-05,2]
[421623559,1777985441000,-1200.0,9.66e-05,2]
[421623561,1777985441000,-300.0,9.759e-05,2]
[421623555,1777985441000,-365.30612975,9.384e-05,2]
[421623556,1777985441000,-2594.43037079,9.431e-05,2]
[421623554,1777985441000,-286.0,9.337e-05,2]
[421623553,1777985441000,-555.6862555,9.337e-05,2]
[421623557,1777985441000,-300.0,9.526e-05,2]
[421623552,1777985441000,-1042.37256033,9.337e-05,2]
[421623551,1777985441000,-2942.59355223,9.337e-05,2]
[421623550,1777985441000,-459.34763194,9.337e-05,2]
[421623560,1777985441000,-300.0,9.759e-05,2]
[421623567,1777985441000,-420.0,0.00010735,2]
[421623574,1777985441000,-300.0,0.00010864,2]
[421623569,1777985441000,-420.0,0.00010735,2]
[421623586,1777985441000,-14552.63005942,0.00010959,2]
[421623585,1777985441000,-300.0,0.00010864,2]
[421623584,1777985441000,-300.0,0.00010864,2]
[421623582,1777985441000,-300.0,0.00010864,2]
[421623580,1777985441000,-300.0,0.00010864,2]
[421623583,1777985441000,-300.0,0.00010864,2]
[421623579,1777985441000,-300.0,0.00010864,2]
[421623581,1777985441000,-300.0,0.00010864,2]
[421623568,1777985441000,-393.0,0.00010735,2]
[421623577,1777985441000,-300.0,0.00010864,2]
[421623576,1777985441000,-300.0,0.00010864,2]
[421623570,1777985441000,-152.0,0.00010781,2]
[421623575,1777985441000,-300.0,0.00010864,2]
[421623571,1777985441000,-300.0,0.00010864,2]
[421623573,1777985441000,-300.0,0.00010864,2]
[421623572,1777985441000,-300.0,0.00010864,2]
[421623578,1777985441000,-300.0,0.00010864,2]
[421623626,1777985447000,-447.36994058,0.00010959,2]
[421623627,1777985447000,-600.0,0.0001108,2]
[421623628,1777985447000,-431.0612331,0.00011384,2]
[421623629,1777985447000,-1630.882025,0.00011401,2]
[421623630,1777985447000,-402.364458,0.00011401,2]
[421623632,1777985447000,-420.0,0.00011564,2]
[421623639,1777985447000,-500.0,0.00011619,2]
[421623634,1777985447000,-500.0,0.00011619,2]
[421623635,1777985447000,-500.0,0.00011619,2]
[421623637,1777985447000,-500.0,0.00011619,2]
[421623641,1777985447000,-440.05774179,0.00011619,2]
[421623640,1777985447000,-238.28775149,0.00011619,2]
[421623631,1777985447000,-11441.9274492,0.00011401,2]
[421623636,1777985447000,-500.0,0.00011619,2]
[421623633,1777985447000,-500.0,0.00011619,2]
[421623638,1777985447000,-250.0,0.00011619,2]
[421623643,1777986015000,1444.0,0.00020329,120]
[421623648,1777986055000,-581.32117959,9.791e-05,2]
[421623651,1777986274000,200.38874653,0.00016924,120]
[421623660,1777986544000,5000.0,0.0002082,120]
[421623672,1777986549000,5000.0,0.0002082,120]
[421623678,1777986557000,5000.0,0.0002082,120]
[421623758,1777986631000,-3082.64081005,8.602e-05,2]
[421623761,1777986631000,-1376.35918995,8.689e-05,2]
[421623759,1777986631000,-541.0,8.602e-05,2]
[421623755,1777986631000,-520.58013479,8.602e-05,2]
[421623889,1777986637000,-1748.45620761,8.689e-05,2]
[421623890,1777986638000,-1444.2492877,8.689e-05,2]
[421623903,1777986640000,-702.24583252,8.777e-05,2]
[421623901,1777986640000,-430.93531474,8.689e-05,2]
[421623902,1777986640000,-1200.0,8.776e-05,2]
[421623926,1777986643000,-1967.25919702,8.777e-05,2]
[421623925,1777986643000,-152.0,8.286e-05,2]
[421623929,1777986643000,-937.93171554,8.777e-05,2]
[421623932,1777986643000,-300.0,8.865e-05,2]
[421623930,1777986643000,-1309.90493667,8.777e-05,2]
[421623931,1777986643000,-287.0,8.865e-05,2]
[421623934,1777986643000,-361.49576993,9.138e-05,2]
[421623933,1777986643000,-300.0,8.865e-05,2]
[421623937,1777986643000,-8.07574626,9.508e-05,2]
[421623935,1777986643000,-300.0,9.417e-05,2]
[421623942,1777986643000,-83.45764771,9.508e-05,2]
[421623941,1777986643000,-300.0,9.508e-05,2]
[421623940,1777986643000,-300.0,9.508e-05,2]
[421623938,1777986643000,-291.92425374,9.508e-05,2]
[421623936,1777986643000,-300.0,9.508e-05,2]
[421623939,1777986643000,-300.0,9.508e-05,2]
[421623982,1777986646000,-300.0,9.508e-05,2]
[421623995,1777986646000,-6828.87498177,0.00010041,2]
[421624006,1777986646000,-362.77356633,0.000105,2]
[421624005,1777986646000,-231.10624992,0.000105,2]
[421623994,1777986646000,-4742.27429289,0.00010041,2]
[421623993,1777986646000,-3035.05554745,0.00010041,2]
[421623992,1777986646000,-1707.21874544,0.00010041,2]
[421623987,1777986646000,-1680.0,9.654e-05,2]
[421623986,1777986646000,-300.0,9.508e-05,2]
[421623985,1777986646000,-300.0,9.508e-05,2]
[421623978,1777986646000,-300.0,9.508e-05,2]
[421623990,1777986646000,-189.69097172,0.00010041,2]
[421623991,1777986646000,-758.76388686,0.00010041,2]
[421623988,1777986646000,-420.0,9.752e-05,2]
[421623983,1777986646000,-300.0,9.508e-05,2]
[421623984,1777986646000,-300.0,9.508e-05,2]
[421623981,1777986646000,-300.0,9.508e-05,2]
[421623979,1777986646000,-300.0,9.508e-05,2]
[421623980,1777986646000,-300.0,9.508e-05,2]
[421623977,1777986646000,-216.54235229,9.508e-05,2]
[421623989,1777986646000,-225.0,9.752e-05,2]
[421623997,1777986646000,-4785.61287013,0.00010041,2]
[421624004,1777986646000,-292.41936317,0.000105,2]
[421623998,1777986646000,-234.99901914,0.000105,2]
[421624021,1777986646000,-500.0,0.00010616,2]
[421624022,1777986646000,-90.01817617,0.00010616,2]
[421624013,1777986646000,-500.0,0.00010616,2]
[421624019,1777986646000,-500.0,0.00010616,2]
[421624018,1777986646000,-500.0,0.00010616,2]
[421624011,1777986646000,-500.0,0.00010616,2]
[421624010,1777986646000,-500.0,0.00010616,2]
[421624020,1777986646000,-500.0,0.00010616,2]
[421624015,1777986646000,-500.0,0.00010616,2]
[421624014,1777986646000,-500.0,0.00010616,2]
[421624012,1777986646000,-500.0,0.00010616,2]
[421624017,1777986646000,-346.35007252,0.00010616,2]
[421623999,1777986646000,-372.91517794,0.000105,2]
[421624016,1777986646000,-500.0,0.00010616,2]
[421624001,1777986646000,-197.71528956,0.000105,2]
[421624002,1777986646000,-302.72862549,0.000105,2]
[421624000,1777986646000,-421.86489065,0.000105,2]
[421624007,1777986646000,-500.0,0.00010616,2]
[421624009,1777986646000,-500.0,0.00010616,2]
[421624008,1777986646000,-500.0,0.00010616,2]
[421624003,1777986646000,-275.51798825,0.000105,2]
[421623996,1777986646000,-4499.94988633,0.00010041,2]
[421624024,1777986797000,1444.0,0.00020329,120]
[421624026,1777987043000,203.08671897,0.0002082,120]
[421624028,1777987363000,1106.75178066,8.01e-05,2]
[421624029,1777987413000,2814.0,8.01e-05,2]
[421624030,1777987422000,5000.0,8.01e-05,2]
[421624031,1777987444000,5000.0,8.01e-05,2]
[421624032,1777987465000,5000.0,8.01e-05,2]
[421624033,1777987488000,3682.85776264,8.01e-05,2]
[421624037,1777987580000,1444.0,0.00020329,120]
[421624121,1777987831000,-283.59715514,8.124e-05,2]
[421624497,1777987842000,-326.0,8.124e-05,2]
[421624511,1777987842000,-299.08819597,8.285e-05,2]
[421624499,1777987842000,-109.0,8.124e-05,2]
[421624505,1777987842000,-13.08819597,8.285e-05,2]
[421624507,1777987842000,-286.91180403,8.285e-05,2]
[421624503,1777987842000,-274.85432713,8.124e-05,2]
[421624509,1777987842000,-300.0,8.285e-05,2]
[421624577,1777987843000,-600.0,9.41e-05,2]
[421624579,1777987843000,-151.0,9.866e-05,2]
[421624566,1777987843000,-300.0,9.139e-05,5]
[421624583,1777987843000,-2832.84638614,0.00010015,2]
[421624563,1777987843000,-755.0,9.114e-05,2]
[421624585,1777987843000,-2778.58553656,0.00010015,2]
[421624575,1777987843000,-183.784,9.227e-05,2]
[421624589,1777987843000,-452.94810601,0.00010124,2]
[421624611,1777987843000,-4035.59629389,0.00011314,2]
[421624581,1777987843000,-152.0,9.922e-05,7]
[421624591,1777987843000,-720.0,0.00010351,2]
[421624595,1777987843000,-308.10962152,0.000104,2]
[421624593,1777987843000,-210.16827984,0.000104,2]
[421624597,1777987843000,-329.41506058,0.000104,2]
[421624598,1777987843000,-160.47013041,0.000104,2]
[421624609,1777987843000,-2065.0,0.00011,2]
[421624561,1777987843000,-420.0,9.114e-05,2]
[421624587,1777987843000,-3122.6991284,0.00010015,2]
[421624559,1777987843000,-300.0,8.374e-05,2]
[421624516,1777987843000,-300.0,8.286e-05,2]
[421624555,1777987843000,-5592.75849618,8.286e-05,2]
[421624514,1777987843000,-900.91180403,8.285e-05,2]
[421624519,1777987843000,-300.0,8.286e-05,2]
[421624527,1777987843000,-300.0,8.286e-05,2]
[421624522,1777987843000,-300.0,8.286e-05,2]
[421624525,1777987843000,-300.0,8.286e-05,2]
[421624523,1777987843000,-300.0,8.286e-05,2]
[421624529,1777987843000,-171.85479696,8.286e-05,2]
[421624518,1777987843000,-300.0,8.286e-05,2]
[421624533,1777987843000,-300.0,8.286e-05,2]
[421624531,1777987843000,-128.14520304,8.286e-05,2]
[421624535,1777987843000,-300.0,8.286e-05,2]
[421624536,1777987843000,-300.0,8.286e-05,2]
[421624538,1777987843000,-300.0,8.286e-05,2]
[421624540,1777987843000,-300.0,8.286e-05,2]
[421624542,1777987843000,-300.0,8.286e-05,2]
[421624545,1777987843000,-12437.59081131,8.286e-05,2]
[421624544,1777987843000,-300.0,8.286e-05,2]
[421624557,1777987843000,-11075.36961386,8.286e-05,2]
[421624602,1777987843000,-100000.0,0.00010504,2]
[421624607,1777987843000,-15000.0,0.00010959,2]
[421624615,1777987843000,-166.62,0.00011394,2]
[421624654,1777987843000,-3376.13128729,0.0001182,2]
[421624667,1777987843000,-200.0,0.00011884,2]
[421624662,1777987843000,-200.0,0.00011884,2]
[421624653,1777987843000,-1502.00479915,0.0001182,2]
[421624651,1777987843000,-375.50119979,0.0001182,2]
[421624660,1777987843000,-200.0,0.00011884,2]
[421624665,1777987843000,-200.0,0.00011884,2]
[421624649,1777987843000,-413.49512599,0.0001182,2]
[421624656,1777987843000,-200.0,0.00011884,2]
[421624664,1777987843000,-200.0,0.00011884,2]
[421624671,1777987843000,-200.0,0.00011884,2]
[421624673,1777987843000,-113641.62131388,0.00012,2]
[421624678,1777987843000,-1719.26634701,0.00012,2]
[421624676,1777987843000,-380.36253887,0.00012,2]
[421624685,1777987843000,-9308.68351841,0.00012,2]
[421624680,1777987843000,-5276.11361017,0.00012,2]
[421624669,1777987843000,-200.0,0.00011884,2]
[421624647,1777987843000,-500.0,0.00011685,2]
[421624658,1777987843000,-200.0,0.00011884,2]
[421624628,1777987843000,-325.612506,0.0001151,2]
[421624604,1777987843000,-500.0,0.00010616,2]
[421624617,1777987843000,-168.18,0.00011397,2]
[421624613,1777987843000,-864.0,0.00011386,2]
[421624645,1777987843000,-456.2076374,0.00011511,2]
[421624620,1777987843000,-171.54,0.00011411,2]
[421624606,1777987843000,-5787.995555,0.0001065,2]
[421624622,1777987843000,-500.0,0.00011411,2]
[421624635,1777987843000,-325.7108611,0.0001151,2]
[421624639,1777987843000,-151.0,0.00011511,2]
[421624600,1777987843000,-155.28902086,0.000104,2]
[421624626,1777987843000,-9710.40731234,0.000115,2]
[421624637,1777987843000,-151.0,0.00011511,2]
[421624624,1777987843000,-174.82,0.00011413,2]
[421624630,1777987843000,-151.0,0.0001151,2]
[421624643,1777987843000,-151.0,0.00011511,2]
[421624618,1777987843000,-169.11,0.00011403,2]
[421624641,1777987843000,-151.6097423,0.00011511,2]
[421624633,1777987843000,-151.0000001,0.0001151,2]
[421624631,1777987843000,-151.0,0.0001151,2]
[421624712,1777987844000,-259.14535789,0.00012,2]
[421624736,1777987846000,-4077.75,0.00012,2]
[421624738,1777987846000,-9240.92986698,0.00012,2]
[421624737,1777987846000,-18441.46365537,0.00012,2]
[421624739,1777987846000,-7944.94629303,0.00012,2]
[421624740,1777987855000,2636.09067021,0.0001,2]
[421624749,1777987873000,-2363.90932979,0.0001188,2]
[421624765,1777988362000,1444.0,0.00020329,120]
[421624774,1777988667000,500.61714521,8.01e-05,2]
[421624773,1777988667000,152.5,8.01e-05,2]
[421624778,1777988797000,504.13,8.01e-05,2]
[421624779,1777988810000,3383.54002383,8.01e-05,2]
[421624920,1777989032000,-300.0,0.00010624,2]
[421624878,1777989032000,-300.0,0.00010401,2]
[421624929,1777989032000,-1120.78017483,0.00010624,2]
[421624882,1777989032000,-300.0,0.00010416,2]
[421624880,1777989032000,-300.0,0.00010416,2]
[421624884,1777989032000,-1200.0,0.00010416,2]
[421624874,1777989032000,-379.10989088,9.414e-05,2]
[421624886,1777989032000,-300.0,0.00010416,2]
[421624896,1777989032000,-300.0,0.00010624,2]
[421624898,1777989032000,-300.0,0.00010624,2]
[421624900,1777989032000,-300.0,0.00010624,2]
[421624888,1777989032000,-2615.9398395,0.00010417,2]
[421624890,1777989032000,-1531.4564482,0.00010417,2]
[421624876,1777989032000,-152.0,9.924e-05,7]
[421624902,1777989032000,-300.0,0.00010624,2]
[421624904,1777989032000,-300.0,0.00010624,2]
[421624916,1777989032000,-300.0,0.00010624,2]
[421624914,1777989032000,-25.98897625,0.00010624,2]
[421624926,1777989032000,-2088.15756439,0.00010624,2]
[421624924,1777989032000,-300.0,0.00010624,2]
[421624918,1777989032000,-300.0,0.00010624,2]
[421624910,1777989032000,-274.01102375,0.00010624,2]
[421624908,1777989032000,-300.0,0.00010624,2]
[421624906,1777989032000,-300.0,0.00010624,2]
[421624894,1777989032000,-300.0,0.00010624,2]
[421624892,1777989032000,-300.0,0.00010624,2]
[421624922,1777989032000,-300.0,0.00010624,2]
[421625005,1777989038000,-458.186801,0.00011524,2]
[421625008,1777989038000,-200.0,0.00011872,2]
[421625006,1777989038000,-151.0,0.00011524,2]
[421625013,1777989038000,-200.0,0.00011872,2]
[421625003,1777989038000,-325.688714,0.00011511,2]
[421625007,1777989038000,-200.0,0.00011872,2]
[421625010,1777989038000,-200.0,0.00011872,2]
[421625011,1777989038000,-200.0,0.00011872,2]
[421625012,1777989038000,-200.0,0.00011872,2]
[421625009,1777989038000,-200.0,0.00011872,2]
[421625001,1777989038000,-420.0,0.00011453,2]
[421625014,1777989038000,-200.0,0.00011872,2]
[421625004,1777989038000,-151.0,0.00011524,2]
[421624996,1777989038000,-151.0,0.00010689,2]
[421625002,1777989038000,-324.7017868,0.00011511,2]
[421624999,1777989038000,-447.34967124,0.00011414,2]
[421624998,1777989038000,-600.0,0.00011391,2]
[421624997,1777989038000,-1483.12867227,0.00011169,2]
[421625000,1777989038000,-300.0,0.00011453,2]
[421624995,1777989038000,-2448.2264676,0.00010624,2]
[421625017,1777989038000,-645.0988151,0.00011978,2]
[421625015,1777989038000,-156.17509989,0.000119,2]
[421625027,1777989038000,-500.0,0.00011978,2]
[421625036,1777989038000,-500.0,0.00011978,2]
[421625019,1777989038000,-500.0,0.00011978,2]
[421625037,1777989038000,-500.0,0.00011978,2]
[421625039,1777989038000,-500.0,0.00011978,2]
[421625040,1777989038000,-500.0,0.00011978,2]
[421625030,1777989038000,-500.0,0.00011978,2]
[421625041,1777989038000,-21842.8330364,0.00011979,2]
[421625028,1777989038000,-500.0,0.00011978,2]
[421625042,1777989038000,-3273.73303254,0.00011979,2]
[421625031,1777989038000,-500.0,0.00011978,2]
[421625035,1777989038000,-500.0,0.00011978,2]
[421625032,1777989038000,-500.0,0.00011978,2]
[421625033,1777989038000,-327.77395452,0.00011978,2]
[421625038,1777989038000,-500.0,0.00011978,2]
[421625029,1777989038000,-500.0,0.00011978,2]
[421625026,1777989038000,-500.0,0.00011978,2]
[421625018,1777989038000,-500.0,0.00011978,2]
[421625022,1777989038000,-500.0,0.00011978,2]
[421625021,1777989038000,-500.0,0.00011978,2]
[421625025,1777989038000,-500.0,0.00011978,2]
[421625020,1777989038000,-500.0,0.00011978,2]
[421625024,1777989038000,-500.0,0.00011978,2]
[421625023,1777989038000,-211.11545173,0.00011978,2]
[421625016,1777989038000,-500.0,0.00011978,2]
[421625034,1777989038000,-500.0,0.00011978,2]
[421625255,1777989046000,-29260.84143257,0.00011979,2]
[421625248,1777989046000,-1316.81261667,0.00011979,2]
[421625318,1777989145000,1444.0,0.00020329,120]
[421625344,1777989672000,34395.06399078,0.0002,120]
[421625346,1777989709000,100803.11270772,0.0002,120]
[421625348,1777989839000,2303.04459673,0.0002,120]
[421625350,1777989928000,1444.0,0.00020329,120]
[421625406,1777990233000,-1818.77708116,0.00010406,2]
[421625409,1777990233000,-569.0,0.00010617,2]
[421625407,1777990233000,-134.89251404,0.00010406,2]
[421625408,1777990233000,-4418.67882041,0.00010511,2]
[421625410,1777990233000,-390.50332617,0.0001067,2]
[421625412,1777990233000,-3008.12814117,0.00010959,2]
[421625414,1777990233000,-5000.0,0.00010959,2]
[421625413,1777990233000,-469.74779629,0.00010959,2]
[421625419,1777990233000,-281.6786739,0.00010959,2]
[421625411,1777990233000,-300.0,0.00010958,2]
[421625585,1777990238000,-500.0,0.00011759,2]
[421625590,1777990238000,-379.44176817,0.00011759,2]
[421625591,1777990238000,-500.0,0.00011759,2]
[421625594,1777990238000,-500.0,0.00011759,2]
[421625598,1777990238000,-500.0,0.00011759,2]
[421625595,1777990238000,-500.0,0.00011759,2]
[421625596,1777990238000,-500.0,0.00011759,2]
[421625592,1777990238000,-500.0,0.00011759,2]
[421625601,1777990238000,-500.0,0.00011759,2]
[421625597,1777990238000,-500.0,0.00011759,2]
[421625599,1777990238000,-310.79520762,0.00011759,2]
[421625583,1777990238000,-500.0,0.00011759,2]
[421625581,1777990238000,-3678.1534154,0.000117,2]
[421625587,1777990238000,-451.56917057,0.00011759,2]
[421625589,1777990238000,-197.78081621,0.00011759,2]
[421625582,1777990238000,-500.0,0.00011759,2]
[421625584,1777990238000,-500.0,0.00011759,2]
[421625588,1777990238000,-500.0,0.00011759,2]
[421625580,1777990238000,-155.56415546,0.000117,2]
[421625577,1777990238000,-255.41385405,0.000117,2]
[421625579,1777990238000,-487.02781263,0.000117,2]
[421625578,1777990238000,-463.1089533,0.000117,2]
[421625576,1777990238000,-425.84571627,0.000117,2]
[421625575,1777990238000,-6240.44538864,0.00010959,2]
[421625600,1777990238000,-500.0,0.00011759,2]
[421625586,1777990238000,-500.0,0.00011759,2]
[421625602,1777990238000,-500.0,0.00011759,2]
[421625593,1777990238000,-500.0,0.00011759,2]